bitfinex/quotes_SOLUSD_20240925
["timestamp","ask_amount","ask_price","bid_price","bid_amount"]
[1727256659400,6.6591,150.17,150.16,15.1995]
[1727256659605,6.6587,150.18,150.16,15.1995]
[1727256661115,6.6585,150.19,150.16,15.1995]
[1727256661600,6.6585,150.19,150.16,16.53119635]
[1727256661781,6.6585,150.19,150.16,15.1995]
[1727256663335,6.6579,150.2,150.16,21.859]
[1727256665206,6.6576,150.21,150.17,6.659]
[1727256665597,6.6576,150.21,150.17,12.9848]
[1727256665797,6.657,150.22,150.18,6.6586]
[1727256666000,6.657,150.22,150.18,7.99010397]
[1727256667003,6.657,150.22,150.18,6.6586]
[1727256667378,20.0,150.25,150.17,6.3258]
[1727256667600,6.6574,150.21,150.17,12.9848]
[1727256670207,6.6561,150.24,150.2,6.6577]
[1727256670512,6.6561,150.24,150.21,1.33132849]
[1727256670691,6.6564,150.23,150.21,1.33132849]
[1727256671484,6.6564,150.23,150.19,16.26022518]
[1727256671686,6.6564,150.23,150.19,6.6581]
[1727256677797,6.656,150.24,150.2,7.988721]
[1727256678115,7.19680785,150.27,150.21,6.6572]
[1727256678116,6.6556,150.25,150.21,6.6572]
[1727256678292,6.6555,150.26,150.22,7.98791792]
[1727256678707,6.6556,150.25,150.21,6.6571]
[1727256682398,0.2443804,150.27,150.22,16.6419]
[1727256682598,6.6551,150.26,150.22,23.2985]
[1727256683117,6.8993804,150.27,150.22,23.2985]
[1727256687596,0.2443804,150.27,150.22,23.2985]
[1727256687813,6.6552,150.26,150.22,23.2985]
[1727256688817,6.6565,150.23,150.19,23.3029]
[1727256689116,6.657,150.22,150.19,16.6448]
[1727256689292,6.657,150.22,150.19,17.97619363]
[1727256689492,6.6564,150.23,150.19,24.63429363]
[1727256690497,16.8813804,150.27,150.19,17.97619363]
[1727256690706,6.656,150.24,150.2,6.6575]
[1727256692999,16.8813804,150.27,150.19,16.6448]
[1727256693214,6.6564,150.23,150.19,23.3029]
[1727256693785,16.8813804,150.27,150.19,23.3029]
[1727256693786,6.6561,150.24,150.19,23.3029]
[1727256694921,6.6556,150.25,150.21,6.6573]
[1727256696830,0.2443804,150.27,150.19,16.6448]
[1727256698127,6.6558,150.25,150.21,6.6572]
[1727256698329,0.2443804,150.27,150.19,16.6448]
[1727256698521,6.656,150.24,150.2,6.6576]
[1727256701735,6.6553,150.26,150.22,6.6568]
[1727256701901,6.6553,150.26,150.23,1.33107883]
[1727256702425,6.6553,150.26,150.22,6.6568]
[1727256703040,6.8992804,150.27,150.23,6.6564]
[1727256703788,6.6552,150.26,150.22,6.6567]
[1727256704396,0.2443804,150.27,150.21,16.643]
[1727256704397,6.6558,150.25,150.21,23.3002]
[1727256705629,6.6554,150.26,150.22,6.6567]
[1727256706636,0.2443804,150.27,150.25,6.6554]
[1727256706832,0.2443804,150.27,150.24,9.60212518]
[1727256707142,0.2443804,150.27,150.26,7.98579162]
[1727256707432,0.2443804,150.27,150.26,6.6551]
[1727256708744,0.2443804,150.27,150.26,7.98571848]
[1727256709732,0.2443804,150.27,150.26,55.24270918]
[1727256710214,0.2443804,150.27,150.26,56.57306606]
[1727256710411,0.2443804,150.27,150.26,62.57536606]
[1727256711016,0.2443804,150.31,150.3,6.6533]
[1727256711218,0.2443804,150.31,150.3,7.98357634]
[1727256712430,0.2443804,150.31,150.3,6.6533]
[1727256718921,0.2443804,150.31,150.26,21.2109]
[1727256719248,0.2443804,150.31,150.26,37.848]
[1727256719426,6.8972804,150.31,150.27,6.6545]
[1727256720523,0.2443804,150.31,150.27,6.6545]
[1727256722147,6.8975804,150.31,150.27,6.6545]
[1727256722335,6.6533,150.3,150.26,44.503]
[1727256722650,6.6533,150.3,150.23,9.60212518]
[1727256722651,0.2443804,150.31,150.23,16.6405]
[1727256723256,6.6538,150.29,150.24,6.6556]
[1727256723548,6.6538,150.29,150.23,16.6405]
[1727256723549,6.6538,150.29,150.25,1.3308117]
[1727256723921,6.6538,150.29,150.25,7.9863117]
[1727256725828,6.6538,150.29,150.24,6.6558]
[1727256726341,6.6538,150.29,150.25,1.33081502]
[1727256726542,0.2443804,150.31,150.25,1.33081502]
[1727256726754,6.6542,150.28,150.24,6.6558]
[1727256727637,6.6539,150.29,150.24,6.6558]
[1727256728550,6.6539,150.29,150.25,6.6555]
[1727256729254,0.2443804,150.31,150.23,16.6405]
[1727256729453,6.6542,150.28,150.24,6.6559]
[1727256729633,6.6542,150.28,150.23,16.6405]
[1727256729833,6.6548,150.27,150.23,23.2965]
[1727256733449,6.6543,150.28,150.24,7.98687526]
[1727256733642,6.654,150.29,150.25,6.6555]
[1727256733843,6.6545,150.28,150.24,6.6558]
[1727256734042,6.6547,150.27,150.23,23.2968]
[1727256736758,6.6547,150.27,150.24,1.33097558]
[1727256736938,6.6543,150.28,150.24,7.98687558]
[1727256737355,6.6539,150.29,150.25,6.6555]
[1727256737661,6.6543,150.28,150.24,6.6557]
[1727256739833,6.6539,150.29,150.25,7.98629523]
[1727256740034,6.6539,150.29,150.25,6.6554]
[1727256741837,6.6543,150.28,150.24,6.6559]
[1727256742757,6.6549,150.27,150.23,23.2968]
[1727256746560,6.6543,150.28,150.24,6.6559]
[1727256747259,16.8768804,150.31,150.25,7.98647736]
[1727256747451,6.6539,150.29,150.25,7.98647736]
[1727256747855,6.6542,150.28,150.25,1.33097736]
[1727256748563,6.6542,150.28,150.25,7.98647736]
[1727256749946,6.6539,150.29,150.25,7.98647736]
[1727256750553,6.6539,150.29,150.25,6.6555]
[1727256752243,6.6539,150.29,150.26,1.33086635]
[1727256753676,6.6539,150.29,150.25,6.6555]
[1727256758862,6.6539,150.29,150.23,16.6405]
[1727256758863,6.6545,150.28,150.24,6.6558]
[1727256760172,6.6548,150.27,150.23,23.2968]
[1727256761061,6.656,150.24,150.22,16.3719]
[1727256767453,16.6358,150.28,150.22,16.3719]
[1727256767661,6.6564,150.23,150.22,16.3719]
[1727256768580,16.6358,150.28,150.22,16.3719]
[1727256768581,6.6561,150.24,150.22,16.3719]
[1727256769276,6.6565,150.23,150.2,16.6435]
[1727256771071,6.6549,150.27,150.22,6.6566]
[1727256771251,26.8698804,150.31,150.23,1.33103376]
[1727256771252,6.6551,150.26,150.23,1.33103376]
[1727256773687,20.0,150.3,150.21,9.60212518]
[1727256773977,6.6547,150.27,150.23,6.6563]
[1727256775882,6.6542,150.28,150.24,22.1593]
[1727256776205,6.6538,150.29,150.25,6.6555]
[1727256777478,0.2443804,150.31,150.24,32.1431]
[1727256777674,0.2443804,150.31,150.24,38.799]
[1727256777887,6.6539,150.29,150.25,6.6555]
[1727256778089,0.2443804,150.31,150.24,32.1431]
[1727256778495,0.2443804,150.31,150.27,9.60212518]
[1727256778725,0.2443804,150.31,150.3,6.6533]
[1727256779275,0.2443804,150.31,150.3,30.430184]
[1727256787803,0.2443804,150.31,150.3,6.6533]
[1727256788094,0.2443804,150.31,150.29,16.5923]
[1727256788095,0.2443804,150.31,150.29,23.2459]
[1727256789589,0.2443804,150.31,150.29,16.5923]
[1727256795473,0.2443804,150.31,150.29,23.246]
[1727256796995,0.2443804,150.31,150.3,7.98374128]
[1727256798276,0.2443804,150.31,150.3,6.6533]
[1727256799086,0.2443804,150.31,150.3,7.98366102]
[1727256799296,0.2443804,150.31,150.3,31.76054502]
[1727256799894,0.2443804,150.31,150.3,30.430184]
[1727256800705,0.2443804,150.31,150.3,6.6533]
[1727256806227,0.2443804,150.31,150.3,7.98363677]
[1727256806413,0.2443804,150.31,150.3,30.430184]
[1727256807493,0.2443804,150.31,150.29,23.2459]
[1727256808017,0.2443804,150.31,150.22,6.6565]
[1727256808018,6.6546,150.27,150.22,6.6565]
[1727256808329,0.2443804,150.31,150.22,6.6565]
[1727256808384,6.6543,150.28,150.22,6.6565]
[1727256809588,6.6547,150.27,150.22,6.6565]
[1727256810617,6.6547,150.27,150.22,23.776884]
[1727256810908,6.6543,150.28,150.23,6.6563]
[1727256811316,6.6537,150.3,150.24,7.98672965]
[1727256811647,6.6537,150.3,150.25,6.6554]
[1727256812711,6.6538,150.29,150.25,6.6554]
[1727256813288,6.6538,150.29,150.24,23.776884]
[1727256813510,6.6538,150.29,150.24,30.432784]
[1727256815224,0.2443804,150.31,150.22,15.765]
[1727256815514,6.6555,150.26,150.22,15.765]
[1727256816017,6.6555,150.26,150.22,22.4217]
[1727256819203,6.6547,150.27,150.22,22.4217]
[1727256819904,6.6543,150.28,150.24,6.6559]
[1727256826133,6.6542,150.28,150.24,6.6558]
[1727256832431,0.2443804,150.31,150.23,16.6406]
[1727256832728,6.6551,150.26,150.23,16.6406]
[1727256834732,6.6551,150.26,150.22,22.4216]
[1727256834913,0.2443804,150.31,150.22,15.765]
[1727256835114,6.6556,150.25,150.22,15.765]
[1727256835323,6.6556,150.25,150.2,16.6436]
[1727256835324,6.6563,150.24,150.2,23.3011]
[1727256835520,16.6379,150.26,150.18,22.6709]
[1727256835745,6.6569,150.22,150.18,22.6709]
[1727256836533,6.6566,150.23,150.18,22.6709]
[1727256837728,6.6566,150.23,150.19,6.6581]
[1727256840740,6.6556,150.25,150.2,7.988716]
[1727256840935,6.6556,150.25,150.21,6.6572]
[1727256842430,6.6556,150.25,150.19,16.6452]
[1727256842631,9.9924,150.28,150.2,6.6575]
[1727256842831,6.656,150.24,150.2,6.6575]
[1727256843837,6.6556,150.25,150.21,7.98849583]
[1727256844222,6.6556,150.25,150.21,6.6573]
[1727256844737,6.6561,150.24,150.2,6.6575]
[1727256854933,43.776884,150.27,150.16,16.8925804]
[1727256855246,6.6578,150.2,150.16,16.8925804]
[1727256855432,6.6591,150.17,150.16,0.2443804]
[1727256855939,16.6439,150.21,150.16,0.2443804]
[1727256855940,6.6587,150.18,150.16,0.2443804]
[1727256859050,22.9446,150.21,150.16,0.2443804]
[1727256859244,6.6591,150.17,150.16,0.2443804]
[1727256860850,6.6586,150.18,150.16,0.2443804]
[1727256861053,6.6591,150.17,150.16,0.2443804]
[1727256861922,22.9446,150.21,150.16,0.2443804]
[1727256862121,6.6588,150.18,150.16,0.2443804]
[1727256864367,6.6586,150.19,150.16,0.2443804]
[1727256864540,6.6587,150.18,150.16,0.2443804]
[1727256868262,6.6576,150.21,150.16,6.9035804]
[1727256868443,6.6578,150.2,150.16,6.9035804]
[1727256869237,6.6578,150.2,150.16,0.2443804]
[1727256869445,6.6584,150.19,150.16,0.2443804]
[1727256870258,6.6587,150.18,150.16,0.2443804]
[1727256871760,16.6424,150.22,150.16,0.2443804]
[1727256872060,6.6591,150.17,150.16,0.2443804]
[1727256879361,6.6587,150.18,150.16,0.2443804]
[1727256880167,16.6424,150.22,150.16,0.2443804]
[1727256880371,6.6591,150.17,150.16,0.2443804]
[1727256882778,6.6588,150.18,150.16,0.2443804]
[1727256883070,20.0,150.21,150.16,0.2443804]
[1727256883465,6.6583,150.19,150.16,0.2443804]
[1727256883867,20.0,150.21,150.16,0.2443804]
[1727256884068,6.6587,150.18,150.16,0.2443804]
[1727256884979,6.6578,150.2,150.16,6.9037804]
[1727256885362,6.6582,150.19,150.16,0.2443804]
[1727256885567,20.0,150.21,150.16,0.2443804]
[1727256885757,6.6587,150.18,150.16,0.2443804]
[1727256887171,20.0,150.21,150.16,0.2443804]
[1727256887371,6.6582,150.19,150.16,0.2443804]
[1727256887593,6.6586,150.18,150.16,0.2443804]
[1727256888675,6.6569,150.22,150.18,6.6586]
[1727256888883,6.6569,150.22,150.17,7.99055744]
[1727256889259,6.6574,150.21,150.17,6.659]
[1727256889963,6.6574,150.21,150.16,33.5238804]
[1727256890161,6.6574,150.21,150.16,40.1832804]
[1727256891757,6.657,150.22,150.17,7.99058419]
[1727256891952,6.6559,150.25,150.2,6.6576]
[1727256892173,6.6552,150.26,150.21,16.82973352]
[1727256892371,10.2367804,150.31,150.21,16.82973352]
[1727256892372,6.6547,150.27,150.21,16.82973352]
[1727256892585,6.6541,150.29,150.24,6.6559]
[1727256893580,0.2443804,150.31,150.24,6.6559]
[1727256893771,6.6542,150.28,150.24,6.6559]
[1727256894485,0.2443804,150.31,150.22,9.60212518]
[1727256894658,6.6538,150.29,150.25,23.294]
[1727256894861,6.8972804,150.31,150.26,7.98568297]
[1727256895160,0.2443804,150.31,150.27,6.6546]
[1727256895488,0.2443804,150.31,150.25,16.6385]
[1727256895659,6.6534,150.3,150.25,23.294]
[1727256899582,6.6538,150.29,150.25,23.294]
[1727256900193,6.6538,150.29,150.25,16.6385]
[1727256901983,20.2443804,150.31,150.23,6.6563]
[1727256902185,6.655,150.27,150.22,23.2985]
[1727256902364,6.6552,150.26,150.22,16.6417]
[1727256902562,20.0,150.29,150.22,1.33117904]
[1727256902777,6.6554,150.26,150.21,22.1556]
[1727256905582,20.0,150.29,150.21,15.4984]
[1727256905885,6.6561,150.24,150.21,15.4984]
[1727256909773,6.6556,150.25,150.21,16.82963358]
[1727256910982,6.6556,150.25,150.21,15.4984]
[1727256911386,6.6556,150.25,150.21,22.1557]
[1727256912668,6.6561,150.24,150.21,15.4984]
[1727256916798,20.0,150.27,150.22,1.33115063]
[1727256916976,6.6547,150.27,150.23,6.6563]
[1727256917293,6.6537,150.3,150.26,6.6548]
[1727256917672,6.6537,150.3,150.27,1.33085586]
[1727256918074,6.6537,150.3,150.26,15.5306]
[1727256919370,6.6537,150.3,150.26,22.1856]
[1727256920274,6.6541,150.29,150.26,15.5306]
[1727256920892,6.6534,150.3,150.26,15.5306]
[1727256921879,6.8972804,150.31,150.27,6.6546]
[1727256922194,6.8972804,150.31,150.27,7.98533675]
[1727256922399,6.8972804,150.31,150.27,1.33073675]
[1727256922581,0.2443804,150.31,150.26,15.5306]
[1727256922781,6.6536,150.3,150.26,15.5306]
[1727256923007,0.2443804,150.31,150.27,1.33076556]
[1727256923189,0.2443804,150.31,150.27,7.98506556]
[1727256925384,0.2443804,150.31,150.27,6.6543]
[1727256925898,0.2443804,150.31,150.28,1.33065838]
[1727256926981,0.2443804,150.31,150.28,7.98475838]
[1727256928699,0.2443804,150.31,150.28,6.6541]
[1727256928905,0.2443804,150.31,150.27,16.6359]
[1727256929083,0.2443804,150.31,150.28,6.6539]
[1727256929910,0.2443804,150.31,150.27,16.6359]
[1727256930077,0.2443804,150.31,150.27,23.2905]
[1727256930507,6.6533,150.3,150.26,15.5306]
[1727256930687,6.6538,150.29,150.26,15.5306]
[1727256931000,0.2443804,150.31,150.22,22.4466]
[1727256931001,6.6546,150.27,150.22,22.4466]
[1727256931883,6.6546,150.27,150.23,6.6562]
[1727256932080,6.6546,150.27,150.23,7.98723018]
[1727256933783,6.6543,150.28,150.23,7.98723018]
[1727256934308,6.6543,150.28,150.23,6.6562]
[1727256934709,6.6543,150.28,150.22,15.7898]
[1727256934888,6.6543,150.28,150.24,6.6559]
[1727256937505,0.2443804,150.31,150.22,22.4463]
[1727256937506,6.6547,150.27,150.22,22.4463]
[1727256938412,6.6547,150.27,150.23,6.6562]
[1727256939802,0.2443804,150.31,150.3,6.6533]
[1727256940300,0.2443804,150.31,150.3,7.9835999]
[1727256940987,0.2443804,150.36,150.35,6.6511]
[1727256941606,0.2443804,150.36,150.34,23.2798]
[1727256943214,0.2443804,150.36,150.35,1.33009208]
[1727256943420,0.2443804,150.36,150.35,7.98119208]
[1727256944020,0.2443804,150.36,150.35,6.6511]
[1727256947925,0.2443804,150.36,150.31,22.8353]
[1727256948216,0.2443804,150.36,150.32,6.6521]
[1727256950195,0.2443804,150.36,150.33,6.6518]
[1727256952512,0.3164095,150.4,150.35,30.181684]
[1727256952733,0.3164095,150.4,150.39,16.25142518]
[1727256953020,0.3164095,150.4,150.39,6.6493]
[1727256953397,0.3164095,150.4,150.37,6.65]
[1727256953792,0.3164095,150.4,150.38,6.6498]
[1727256960908,0.3164095,150.4,150.35,23.032]
[1727256961122,6.6499,150.38,150.34,21.787]
[1727256961425,6.6494,150.39,150.34,21.787]
[1727256962118,6.6494,150.39,150.35,6.6511]
[1727256962939,6.6494,150.39,150.34,15.1358]
[1727256962940,0.3164095,150.4,150.31,6.4064]
[1727256963129,6.6507,150.36,150.31,23.0381]
[1727256963311,6.6507,150.36,150.31,29.6907]
[1727256963627,6.6507,150.36,150.32,6.6524]
[1727256963845,0.3164095,150.4,150.31,23.0381]
[1727256964020,44.0932935,150.4,150.31,29.691]
[1727256964207,6.6508,150.36,150.32,6.6522]
[1727256964416,6.6508,150.36,150.33,1.33024069]
[1727256966113,6.6508,150.36,150.32,6.6522]
[1727256970337,6.6508,150.36,150.33,1.33024106]
[1727256971729,6.6508,150.36,150.32,6.6522]
[1727256971920,6.6508,150.36,150.33,1.33024132]
[1727256972223,6.6501,150.38,150.34,7.98174133]
[1727256972431,6.6501,150.38,150.34,6.6515]
[1727256973316,6.6505,150.37,150.33,23.2813]
[1727256973516,6.6507,150.36,150.33,16.6294]
[1727256975324,6.6504,150.37,150.33,17.95961079]
[1727256975617,6.6504,150.37,150.33,24.61141079]
[1727256976130,6.6504,150.37,150.33,23.2812]
[1727256976340,6.6497,150.39,150.35,6.6511]
[1727256977520,0.3164095,150.4,150.35,6.6511]
[1727256977724,6.9654095,150.4,150.36,6.6506]
[1727256978643,6.9654095,150.4,150.37,1.32993238]
[1727256978855,0.3164095,150.4,150.37,1.32993238]
[1727256979139,0.3164095,150.4,150.37,7.98013238]
[1727256984442,0.3164095,150.4,150.37,6.6502]
[1727256985645,0.3164095,150.4,150.38,1.32978459]
[1727256986649,0.3164095,150.4,150.36,16.3172]
[1727256986950,6.6493,150.39,150.36,16.3172]
[1727256988720,6.6502,150.37,150.33,6.6517]
[1727256989047,6.6502,150.37,150.29,10.88781768]
[1727256989048,6.6517,150.34,150.29,16.6343]
[1727256990241,6.6512,150.35,150.3,6.653]
[1727256990544,6.6508,150.36,150.31,6.6525]
[1727256991423,16.6235,150.39,150.29,16.6343]
[1727256991741,6.6514,150.35,150.3,6.6532]
[1727256992742,6.6516,150.34,150.3,6.6532]
[1727256995523,6.6516,150.34,150.29,23.2879]
[1727256995725,6.652,150.33,150.29,23.2879]
[1727256997749,6.6524,150.32,150.29,16.6343]
[1727257000946,6.6524,150.32,150.28,23.247]
[1727257001248,6.6526,150.32,150.28,16.5929]
[1727257001450,43.776884,150.36,150.28,16.5929]
[1727257001646,6.6529,150.31,150.28,16.5929]
[1727257003364,16.6283,150.35,150.28,16.5929]
[1727257003520,6.6526,150.32,150.28,23.2467]
[1727257008868,16.6283,150.35,150.28,16.5929]
[1727257009057,6.6521,150.33,150.29,6.6537]
[1727257011040,6.6524,150.32,150.29,6.6537]
[1727257012447,16.6283,150.35,150.28,33.2283]
[1727257012671,6.6531,150.31,150.28,33.2283]
[1727257013661,16.6283,150.35,150.28,33.2283]
[1727257013838,6.6526,150.32,150.28,39.8824]
[1727257014158,6.6522,150.33,150.29,6.6537]
[1727257018070,6.6525,150.32,150.28,41.21283906]
[1727257018972,20.0,150.35,150.28,34.55893906]
[1727257019264,6.6523,150.33,150.29,6.6537]
[1727257020668,6.6525,150.32,150.28,39.8824]
[1727257020965,6.6529,150.31,150.28,33.2283]
[1727257021170,6.6529,150.31,150.29,1.33060757]
[1727257021872,6.6526,150.32,150.29,1.33060757]
[1727257022865,6.6526,150.32,150.28,39.8825]
[1727257023173,20.0,150.37,150.25,0.2443804]
[1727257023505,6.6545,150.28,150.25,0.2443804]
[1727257026675,6.6539,150.29,150.25,6.8998804]
[1727257027954,6.6542,150.28,150.25,0.2443804]
[1727257029065,6.6542,150.28,150.25,1.57535134]
[1727257030367,6.6542,150.28,150.25,0.2443804]
[1727257031875,6.654,150.29,150.25,6.8997804]
[1727257032276,6.6534,150.3,150.26,6.655]
[1727257032476,6.6538,150.29,150.25,6.8997804]
[1727257043984,6.6538,150.29,150.25,0.2443804]
[1727257044188,6.6538,150.29,150.26,7.98589915]
[1727257045077,16.6287,150.35,150.26,28.85621683]
[1727257045469,16.6287,150.35,150.27,6.6199]
[1727257045789,16.6287,150.35,150.28,1.33054666]
[1727257046279,6.6533,150.3,150.27,6.6199]
[1727257047070,6.653,150.31,150.27,13.2745]
[1727257048568,6.6533,150.3,150.27,6.6199]
[1727257052590,6.6538,150.29,150.27,6.6199]
[1727257053906,6.6542,150.28,150.25,0.2443804]
[1727257054191,6.6547,150.27,150.25,0.2443804]
[1727257061779,6.6547,150.27,150.25,1.57532829]
[1727257062102,6.6547,150.27,150.25,0.2443804]
[1727257062901,16.6324,150.31,150.25,0.2443804]
[1727257063108,6.6551,150.26,150.25,0.2443804]
[1727257083027,23.57756024,150.32,150.26,16.4575]
[1727257083222,16.6319,150.32,150.26,16.4575]
[1727257084607,6.6538,150.29,150.26,16.4575]
[1727257085212,6.6546,150.27,150.26,16.4575]
[1727257085611,6.6551,150.26,150.25,0.2443804]
[1727257087099,30.431984,150.26,150.25,0.2443804]
[1727257090831,30.431984,150.26,150.25,0.2443804]
[1727257092826,6.6551,150.26,150.25,0.2443804]
[1727257096828,50.431984,150.26,150.25,0.2443804]
[1727257098908,26.6551,150.26,150.25,0.2443804]
[1727257102710,50.431984,150.26,150.25,0.2443804]
[1727257103508,30.431984,150.26,150.25,0.2443804]
[1727257103734,50.431984,150.26,150.25,0.2443804]
[1727257128191,6.6551,150.26,150.25,0.2443804]
[1727257129655,50.431984,150.26,150.25,0.2443804]
[1727257138135,26.6551,150.26,150.25,0.2443804]
[1727257139245,50.431984,150.26,150.25,0.2443804]
[1727257170589,26.6551,150.26,150.25,0.2443804]
[1727257171670,50.431984,150.26,150.25,0.2443804]
[1727257180525,26.6551,150.26,150.25,0.2443804]
[1727257186515,6.6551,150.26,150.25,0.2443804]
[1727257191984,50.431984,150.26,150.25,0.2443804]
[1727257192501,30.431984,150.26,150.25,0.2443804]
[1727257192691,50.431984,150.26,150.25,0.2443804]
[1727257197102,50.431984,150.26,150.25,8.04e-05]
[1727257200815,26.6573,150.21,150.2,0.2443804]
[1727257201008,50.434184,150.21,150.2,0.2443804]
[1727257201207,6.6573,150.21,150.2,0.2443804]
[1727257202109,6.6569,150.22,150.2,0.2443804]
[1727257202497,16.6374,150.27,150.2,0.2443804]
[1727257202808,6.6565,150.23,150.2,0.2443804]
[1727257205504,6.656,150.24,150.2,6.9020804]
[1727257210425,6.6565,150.23,150.2,0.2443804]
[1727257211806,6.6571,150.22,150.2,0.2443804]
[1727257213919,16.6374,150.27,150.2,0.2443804]
[1727257213920,6.6566,150.23,150.2,0.2443804]
[1727257219826,6.6561,150.24,150.2,6.9020804]
[1727257220328,6.6561,150.24,150.21,1.3312548]
[1727257221417,20.0,150.25,150.21,1.3312548]
[1727257221626,6.6561,150.24,150.21,1.3312548]
[1727257223244,6.6561,150.24,150.2,6.9020804]
[1727257223447,6.6561,150.24,150.21,21.7869]
[1727257223625,6.6561,150.24,150.21,28.4442]
[1727257224526,6.6561,150.24,150.21,21.7869]
[1727257225154,6.6556,150.25,150.21,28.444]
[1727257225392,6.6556,150.25,150.22,1.331147]
[1727257225519,6.6556,150.25,150.21,28.444]
[1727257226135,6.656,150.24,150.21,21.7869]
[1727257229026,16.6358,150.28,150.21,21.7869]
[1727257229236,6.6565,150.23,150.21,21.7869]
[1727257229926,6.6569,150.22,150.21,21.7869]
[1727257230323,6.6565,150.23,150.21,21.7869]
[1727257232223,6.6569,150.22,150.21,21.7869]
[1727257239928,6.6573,150.21,150.2,0.2443804]
[1727257270345,16.6392,150.25,150.2,0.2443804]
[1727257270669,6.6557,150.25,150.21,22.6252]
[1727257270849,6.6557,150.25,150.22,1.33112687]
[1727257271591,6.6557,150.25,150.21,22.6252]
[1727257271769,6.656,150.24,150.21,15.9679]
[1727257273055,6.6565,150.23,150.21,15.9679]
[1727257273274,6.6569,150.22,150.21,15.9679]
[1727257275543,6.6565,150.23,150.21,15.9679]
[1727257275767,6.6565,150.23,150.22,1.33123803]
[1727257275951,6.6565,150.23,150.21,15.9679]
[1727257280859,16.6379,150.26,150.21,15.9679]
[1727257281056,6.6569,150.22,150.21,15.9679]
[1727257286465,6.6566,150.23,150.21,15.9679]
[1727257289191,16.6379,150.26,150.22,1.33131159]
[1727257289192,6.6561,150.24,150.22,1.33131159]
[1727257290486,6.6557,150.25,150.21,22.6252]
[1727257292520,6.6569,150.22,150.21,15.9679]
[1727257292870,6.6569,150.22,150.2,0.2443804]
[1727257297867,6.6573,150.21,150.2,0.2443804]
[1727257334818,6.6577,150.2,150.16,6.9035804]
[1727257335414,20.0,150.22,150.16,6.9035804]
[1727257335616,6.6574,150.21,150.16,6.9035804]
[1727257367161,6.6573,150.21,150.18,1.33155847]
[1727257367768,6.6573,150.21,150.17,6.659]
[1727257368035,6.6573,150.21,150.16,16.8927804]
[1727257368250,6.6583,150.19,150.16,0.2443804]
[1727257368624,6.6587,150.18,150.16,0.2443804]
[1727257368836,23.776884,150.22,150.16,0.2443804]
[1727257368837,6.6591,150.17,150.16,0.2443804]
[1727257369161,16.6439,150.21,150.16,0.2443804]
[1727257369346,6.6588,150.18,150.16,0.2443804]
[1727257370436,16.6439,150.21,150.16,0.2443804]
[1727257370641,6.6582,150.19,150.16,0.2443804]
[1727257403668,50.435984,150.17,150.16,0.2443804]
[1727257408973,26.6591,150.17,150.16,0.2443804]
[1727257410352,50.435984,150.17,150.16,0.2443804]
[1727257411574,50.435984,150.17,150.13,15.1275]
[1727257411575,26.6604,150.14,150.13,15.1275]
[1727257413576,26.6604,150.14,150.13,15.3718804]
[1727257417070,20.0,150.14,150.13,15.3718804]
[1727257417983,6.6604,150.14,150.13,15.3718804]
[1727257418153,26.6604,150.14,150.13,15.3718804]
[1727257422255,6.6594,150.17,150.13,22.0325804]
[1727257422454,16.6437,150.21,150.13,26.28383677]
[1727257423057,6.6589,150.18,150.14,6.66]
[1727257423261,6.6589,150.18,150.13,49.59643677]
[1727257426585,6.6589,150.18,150.14,6.6603]
[1727257427291,6.6589,150.18,150.14,6.9046804]
[1727257429891,6.6589,150.18,150.14,6.9046804]
[1727257439187,6.6591,150.17,150.14,0.2443804]
[1727257464403,60.22786284,150.25,150.14,0.2443804]
[1727257464404,26.66,150.15,150.14,0.2443804]
[1727257473206,50.436884,150.15,150.14,0.2443804]
[1727257484512,26.66,150.15,150.14,0.2443804]
[1727257488000,6.66,150.15,150.14,0.2443804]
[1727257488817,6.6581,150.2,150.14,16.7424804]
[1727257489020,6.6582,150.19,150.14,16.7424804]
[1727257489803,6.6582,150.19,150.14,23.4026804]